Workbook

Sheet Antiderivatives
B1: Integrating the Acceleration
B3: This DIGMath program lets you investigate
B4: the results of repeated integration
B5: of any desired acceleration function
B6: to construct the velocity and position
A9: Enter the function in terms of t: f(t) = | F9: 5*t
A11: Now enter the interval for x:
C12: tMin = | D12: 0
C13: tMax = | D13: 6
A15: What is the initial velocity v0? | E15: 4
A16: What is the initial position y0? | E16: 12
A19: Now trace along the curves: t0 = | E19: =xMin + C20*(xMax-xMin)/200 -> 3.21
C20: 107
C21: then: | D21: a = | E21: =LOOKUP(E$19,Sheet2!A$3:A$804,Sheet2!B$3:B$804) -> 16.03
D22: v = | E22: =LOOKUP(E$19,Sheet2!A$3:A$804,Sheet2!C$3:C$804) -> 29.64
D23: y = | E23: =LOOKUP(E$19,Sheet2!A$3:A$804,Sheet2!D$3:D$804) -> 52.09
A25: Click each item below for suggestions and investigations
B26: Item 1
B27: Item 2
B28: Item 3
A33: To access/download all the DIGMath Apps for Calculus
A34: Click this link: | C34: DIGMath for Calculus
A36: Created by: Sheldon P. Gordon
A37: Farmingdale State College
A38: Development of this module was supported by the
A39: NSF's Division of Undergraduate Education
A40: under grants DUE-0310123 and DUE-0442160.

Sheet Sheet2
A1: x | B1: accel | C1: vel | D1: position | E1: xl= | F1: =IF(Antiderivatives!$D$17<Antiderivatives!D12+80*Sheet2!F5,Antiderivatives!D12,Antiderivatives!D17-80*Sheet2!F5) -> 0 | G1: =LOOKUP(Antiderivatives!D17,Sheet2!A3:A1002,Sheet2!B3:B1002)+LOOKUP(Antiderivatives!D17,Sheet2!A3:A1002,Sheet2!C3:C1002)*(F1-Antiderivatives!D17) -> 0 | H1: "=yl
E2: xr= | F2: =IF(Antiderivatives!$D$17>Antiderivatives!D13-80*Sheet2!F5,Antiderivatives!D13,Antiderivatives!D17+80*Sheet2!F5) -> 0.5992509363 | G2: =LOOKUP(Antiderivatives!D17,Sheet2!A3:A1003,Sheet2!B3:B1003)+LOOKUP(Antiderivatives!D17,Sheet2!A3:A1003,Sheet2!C3:C1003)*(F2-Antiderivatives!D17) -> 2.397003745 | H2: "=yR
A3: =xMin -> 0.00 | B3: =5*t -> 0 | C3: =v0 -> 4 | D3: =y0 -> 12
A4: =A3+dx -> 0.01 | B4: 0.03745318352 | C4: =C3+B3*dx -> 4 | D4: =D3+C3*dx -> 12.02996255
A5: 0.01 | B5: 0.07490636704 | C5: 4.000280548 | D5: 12.05992509 | E5: delta x = | F5: =(Antiderivatives!D13-Antiderivatives!D12)/801 -> 0.007490636704
A6: 0.02 | B6: 0.1123595506 | C6: 4.000841645 | D6: 12.08988974
A7: 0.03 | B7: 0.1498127341 | C7: 4.001683289 | D7: 12.11985859
A8: 0.04 | B8: 0.1872659176 | C8: 4.002805482 | D8: 12.14983375
A9: 0.04 | B9: 0.2247191011 | C9: 4.004208223 | D9: 12.17981731
A10: 0.05 | B10: 0.2621722846 | C10: 4.005891512 | D10: 12.20981138
A11: 0.06 | B11: 0.2996254682 | C11: 4.007855349 | D11: 12.23981806
A12: 0.07 | B12: 0.3370786517 | C12: 4.010099735 | D12: 12.26983945
A13: 0.07 | B13: 0.3745318352 | C13: 4.012624669 | D13: 12.29987765
A14: 0.08 | B14: 0.4119850187 | C14: 4.015430151 | D14: 12.32993476
A15: 0.09 | B15: 0.4494382022 | C15: 4.018516181 | D15: 12.36001289
A16: 0.10 | B16: 0.4868913858 | C16: 4.021882759 | D16: 12.39011413
A17: 0.10 | B17: 0.5243445693 | C17: 4.025529885 | D17: 12.4202406
A18: 0.11 | B18: 0.5617977528 | C18: 4.02945756 | D18: 12.45039438
A19: 0.12 | B19: 0.5992509363 | C19: 4.033665783 | D19: 12.48057758
A20: 0.13 | B20: 0.6367041199 | C20: 4.038154554 | D20: 12.51079231
A21: 0.13 | B21: 0.6741573034 | C21: 4.042923873 | D21: 12.54104065
A22: 0.14 | B22: 0.7116104869 | C22: 4.047973741 | D22: 12.57132473
A23: 0.15 | B23: 0.7490636704 | C23: 4.053304156 | D23: 12.60164663
A24: 0.16 | B24: 0.7865168539 | C24: 4.05891512 | D24: 12.63200846
A25: 0.16 | B25: 0.8239700375 | C25: 4.064806632 | D25: 12.66241232
A26: 0.17 | B26: 0.861423221 | C26: 4.070978692 | D26: 12.69286031
A27: 0.18 | B27: 0.8988764045 | C27: 4.077431301 | D27: 12.72335453
A28: 0.19 | B28: 0.936329588 | C28: 4.084164457 | D28: 12.75389708
A29: 0.19 | B29: 0.9737827715 | C29: 4.091178162 | D29: 12.78449008
A30: 0.20 | B30: 1.011235955 | C30: 4.098472415 | D30: 12.81513561
A31: 0.21 | B31: 1.048689139 | C31: 4.106047216 | D31: 12.84583577
A32: 0.22 | B32: 1.086142322 | C32: 4.113902566 | D32: 12.87659268
A33: 0.22 | B33: 1.123595506 | C33: 4.122038463 | D33: 12.90740843
A34: 0.23 | B34: 1.161048689 | C34: 4.130454909 | D34: 12.93828512
A35: 0.24 | B35: 1.198501873 | C35: 4.139151903 | D35: 12.96922486
A36: 0.25 | B36: 1.235955056 | C36: 4.148129445 | D36: 13.00022974
A37: 0.25 | B37: 1.27340824 | C37: 4.157387535 | D37: 13.03130188
A38: 0.26 | B38: 1.310861423 | C38: 4.166926174 | D38: 13.06244336
A39: 0.27 | B39: 1.348314607 | C39: 4.17674536 | D39: 13.09365629
A40: 0.28 | B40: 1.38576779 | C40: 4.186845095 | D40: 13.12494277
A41: 0.28 | B41: 1.423220974 | C41: 4.197225378 | D41: 13.1563049
A42: 0.29 | B42: 1.460674157 | C42: 4.20788621 | D42: 13.18774479
A43: 0.30 | B43: 1.498127341 | C43: 4.218827589 | D43: 13.21926454
A44: 0.31 | B44: 1.535580524 | C44: 4.230049517 | D44: 13.25086625
A45: 0.31 | B45: 1.573033708 | C45: 4.241551993 | D45: 13.28255201
A46: 0.32 | B46: 1.610486891 | C46: 4.253335017 | D46: 13.31432393
A47: 0.33 | B47: 1.647940075 | C47: 4.265398589 | D47: 13.34618412
A48: 0.34 | B48: 1.685393258 | C48: 4.277742709 | D48: 13.37813467
A49: 0.34 | B49: 1.722846442 | C49: 4.290367378 | D49: 13.41017769
A50: 0.35 | B50: 1.760299625 | C50: 4.303272595 | D50: 13.44231527
A51: 0.36 | B51: 1.797752809 | C51: 4.31645836 | D51: 13.47454952
A52: 0.37 | B52: 1.835205993 | C52: 4.329924673 | D52: 13.50688255
A53: 0.37 | B53: 1.872659176 | C53: 4.343671534 | D53: 13.53931644
A54: 0.38 | B54: 1.91011236 | C54: 4.357698944 | D54: 13.5718533
A55: 0.39 | B55: 1.947565543 | C55: 4.372006901 | D55: 13.60449524
A56: 0.40 | B56: 1.985018727 | C56: 4.386595407 | D56: 13.63724436
A57: 0.40 | B57: 2.02247191 | C57: 4.401464462 | D57: 13.67010275
A58: 0.41 | B58: 2.059925094 | C58: 4.416614064 | D58: 13.70307252
A59: 0.42 | B59: 2.097378277 | C59: 4.432044214 | D59: 13.73615577
A60: 0.43 | B60: 2.134831461 | C60: 4.447754913 | D60: 13.76935461
A61: 0.43 | B61: 2.172284644 | C61: 4.46374616 | D61: 13.80267112
A62: 0.44 | B62: 2.209737828 | C62: 4.480017955 | D62: 13.83610742
A63: 0.45 | B63: 2.247191011 | C63: 4.496570298 | D63: 13.86966561
A64: 0.46 | B64: 2.284644195 | C64: 4.51340319 | D64: 13.90334779
A65: 0.46 | B65: 2.322097378 | C65: 4.530516629 | D65: 13.93715605
A66: 0.47 | B66: 2.359550562 | C66: 4.547910617 | D66: 13.9710925
A67: 0.48 | B67: =5*t -> 2.397003745 | C67: 4.565585153 | D67: 14.00515925
A68: =A67+dx -> 0.49 | B68: 2.434456929 | C68: =C67+B67*dx -> 4.583540238 | D68: =D67+C67*dx -> 14.03935839
A69: 0.49 | B69: 2.471910112 | C69: 4.60177587 | D69: 14.07369202
A70: 0.50 | B70: 2.509363296 | C70: 4.620292051 | D70: 14.10816226
A71: 0.51 | B71: 2.546816479 | C71: 4.639088779 | D71: 14.14277118
A72: 0.52 | B72: 2.584269663 | C72: 4.658166056 | D72: 14.17752091
A73: 0.52 | B73: 2.621722846 | C73: 4.677523882 | D73: 14.21241354
A74: 0.53 | B74: 2.65917603 | C74: 4.697162255 | D74: 14.24745118
A75: 0.54 | B75: 2.696629213 | C75: 4.717081177 | D75: 14.28263591
A76: 0.55 | B76: 2.734082397 | C76: 4.737280646 | D76: 14.31796985
A77: 0.55 | B77: 2.771535581 | C77: 4.757760664 | D77: 14.3534551
A78: 0.56 | B78: 2.808988764 | C78: 4.77852123 | D78: 14.38909376
A79: 0.57 | B79: 2.846441948 | C79: 4.799562345 | D79: 14.42488792
A80: 0.58 | B80: 2.883895131 | C80: 4.820884007 | D80: 14.4608397
A81: 0.58 | B81: 2.921348315 | C81: 4.842486218 | D81: 14.49695119
A82: 0.59 | B82: 2.958801498 | C82: 4.864368977 | D82: 14.5332245
A83: 0.60 | B83: 2.996254682 | C83: 4.886532284 | D83: 14.56966172
A84: 0.61 | B84: 3.033707865 | C84: 4.908976139 | D84: 14.60626496
A85: 0.61 | B85: 3.071161049 | C85: 4.931700543 | D85: 14.64303631
A86: 0.62 | B86: 3.108614232 | C86: 4.954705495 | D86: 14.67997789
A87: 0.63 | B87: 3.146067416 | C87: 4.977990994 | D87: 14.71709179
A88: 0.64 | B88: 3.183520599 | C88: 5.001557042 | D88: 14.75438011
A89: 0.64 | B89: 3.220973783 | C89: 5.025403639 | D89: 14.79184496
A90: 0.65 | B90: 3.258426966 | C90: 5.049530783 | D90: 14.82948843
A91: 0.66 | B91: 3.29588015 | C91: 5.073938476 | D91: 14.86731263
A92: 0.67 | B92: 3.333333333 | C92: 5.098626717 | D92: 14.90531966
A93: 0.67 | B93: 3.370786517 | C93: 5.123595506 | D93: 14.94351162
A94: 0.68 | B94: 3.4082397 | C94: 5.148844843 | D94: 14.98189061
A95: 0.69 | B95: 3.445692884 | C95: 5.174374728 | D95: 15.02045874
A96: 0.70 | B96: 3.483146067 | C96: 5.200185162 | D96: 15.0592181
A97: 0.70 | B97: 3.520599251 | C97: 5.226276144 | D97: 15.0981708
A98: 0.71 | B98: 3.558052434 | C98: 5.252647674 | D98: 15.13731894
A99: 0.72 | B99: 3.595505618 | C99: 5.279299752 | D99: 15.17666461
A100: 0.73 | B100: 3.632958801 | C100: 5.306232378 | D100: 15.21620993
A101: 0.73 | B101: 3.670411985 | C101: 5.333445553 | D101: 15.25595699
A102: 0.74 | B102: 3.707865169 | C102: 5.360939275 | D102: 15.29590789
A103: 0.75 | B103: 3.745318352 | C103: 5.388713546 | D103: 15.33606474
A104: 0.76 | B104: 3.782771536 | C104: 5.416768365 | D104: 15.37642963
A105: 0.76 | B105: 3.820224719 | C105: 5.445103733 | D105: 15.41700468
A106: 0.77 | B106: 3.857677903 | C106: 5.473719648 | D106: 15.45779197
A107: 0.78 | B107: 3.895131086 | C107: 5.502616112 | D107: 15.49879362
A108: 0.79 | B108: 3.93258427 | C108: 5.531793124 | D108: 15.54001171
A109: 0.79 | B109: 3.970037453 | C109: 5.561250684 | D109: 15.58144837
A110: 0.80 | B110: 4.007490637 | C110: 5.590988792 | D110: 15.62310568
A111: 0.81 | B111: 4.04494382 | C111: 5.621007449 | D111: 15.66498574
A112: 0.82 | B112: 4.082397004 | C112: 5.651306653 | D112: 15.70709067
A113: 0.82 | B113: 4.119850187 | C113: 5.681886406 | D113: 15.74942255
A114: 0.83 | B114: 4.157303371 | C114: 5.712746707 | D114: 15.7919835
A115: 0.84 | B115: 4.194756554 | C115: 5.743887556 | D115: 15.83477561
A116: 0.85 | B116: 4.232209738 | C116: 5.775308954 | D116: 15.87780098
A117: 0.85 | B117: 4.269662921 | C117: 5.807010899 | D117: 15.92106172
A118: 0.86 | B118: 4.307116105 | C118: 5.838993393 | D118: 15.96455993
A119: 0.87 | B119: 4.344569288 | C119: 5.871256435 | D119: 16.00829771
A120: 0.88 | B120: 4.382022472 | C120: 5.903800025 | D120: 16.05227716
A121: 0.88 | B121: 4.419475655 | C121: 5.936624164 | D121: 16.09650038
A122: 0.89 | B122: 4.456928839 | C122: 5.96972885 | D122: 16.14096948
A123: 0.90 | B123: 4.494382022 | C123: 6.003114085 | D123: 16.18568655
A124: 0.91 | B124: 4.531835206 | C124: 6.036779868 | D124: 16.23065369
A125: 0.91 | B125: 4.56928839 | C125: 6.070726199 | D125: 16.27587302
A126: 0.92 | B126: 4.606741573 | C126: 6.104953078 | D126: 16.32134662
A127: 0.93 | B127: 4.644194757 | C127: 6.139460506 | D127: 16.36707661
A128: 0.94 | B128: 4.68164794 | C128: 6.174248482 | D128: 16.41306508
A129: 0.94 | B129: 4.719101124 | C129: 6.209317005 | D129: 16.45931413
A130: 0.95 | B130: 4.756554307 | C130: 6.244666078 | D130: 16.50582587
A131: 0.96 | B131: =5*t -> 4.794007491 | C131: 6.280295698 | D131: 16.55260239
A132: =A131+dx -> 0.97 | B132: 4.831460674 | C132: =C131+B131*dx -> 6.316205866 | D132: =D131+C131*dx -> 16.59964581
A133: 0.97 | B133: 4.868913858 | C133: 6.352396583 | D133: 16.64695821
A134: 0.98 | B134: 4.906367041 | C134: 6.388867848 | D134: 16.6945417
A135: 0.99 | B135: 4.943820225 | C135: 6.425619661 | D135: 16.74239839
A136: 1.00 | B136: 4.981273408 | C136: 6.462652022 | D136: 16.79053037
A137: 1.00 | B137: 5.018726592 | C137: 6.499964931 | D137: 16.83893975
A138: 1.01 | B138: 5.056179775 | C138: 6.537558389 | D138: 16.88762863
A139: 1.02 | B139: 5.093632959 | C139: 6.575432395 | D139: 16.9365991
A140: 1.03 | B140: 5.131086142 | C140: 6.613586949 | D140: 16.98585328
A141: 1.03 | B141: 5.168539326 | C141: 6.652022051 | D141: 17.03539326
A142: 1.04 | B142: 5.205992509 | C142: 6.690737701 | D142: 17.08522114
A143: 1.05 | B143: 5.243445693 | C143: 6.7297339 | D143: 17.13533902
A144: 1.06 | B144: 5.280898876 | C144: 6.769010647 | D144: 17.18574901
A145: 1.06 | B145: 5.31835206 | C145: 6.808567942 | D145: 17.23645321
A146: 1.07 | B146: 5.355805243 | C146: 6.848405785 | D146: 17.28745372
A147: 1.08 | B147: 5.393258427 | C147: 6.888524176 | D147: 17.33875264
A148: 1.09 | B148: 5.43071161 | C148: 6.928923116 | D148: 17.39035207
A149: 1.09 | B149: 5.468164794 | C149: 6.969602603 | D149: 17.44225412
A150: 1.10 | B150: 5.505617978 | C150: 7.010562639 | D150: 17.49446088
A151: 1.11 | B151: 5.543071161 | C151: 7.051803223 | D151: 17.54697446
A152: 1.12 | B152: 5.580524345 | C152: 7.093324356 | D152: 17.59979695
A153: 1.12 | B153: 5.617977528 | C153: 7.135126036 | D153: 17.65293047
A154: 1.13 | B154: 5.655430712 | C154: 7.177208265 | D154: 17.70637711
A155: 1.14 | B155: 5.692883895 | C155: 7.219571042 | D155: 17.76013897
A156: 1.15 | B156: 5.730337079 | C156: 7.262214367 | D156: 17.81421815
A157: 1.15 | B157: 5.767790262 | C157: 7.30513824 | D157: 17.86861676
A158: 1.16 | B158: 5.805243446 | C158: 7.348342662 | D158: 17.9233369
A159: 1.17 | B159: 5.842696629 | C159: 7.391827631 | D159: 17.97838066
A160: 1.18 | B160: 5.880149813 | C160: 7.435593149 | D160: 18.03375016
A161: 1.18 | B161: 5.917602996 | C161: 7.479639215 | D161: 18.08944748
A162: 1.19 | B162: 5.95505618 | C162: 7.523965829 | D162: 18.14547474
A163: 1.20 | B163: 5.992509363 | C163: 7.568572992 | D163: 18.20183404
A164: 1.21 | B164: 6.029962547 | C164: 7.613460702 | D164: 18.25852747
A165: 1.21 | B165: 6.06741573 | C165: 7.658628961 | D165: 18.31555714
A166: 1.22 | B166: 6.104868914 | C166: 7.704077768 | D166: 18.37292515
A167: 1.23 | B167: 6.142322097 | C167: 7.749807123 | D167: 18.43063359
A168: 1.24 | B168: 6.179775281 | C168: 7.795817026 | D168: 18.48868458
A169: 1.24 | B169: 6.217228464 | C169: 7.842107478 | D169: 18.54708022
A170: 1.25 | B170: 6.254681648 | C170: 7.888678478 | D170: 18.60582259
A171: 1.26 | B171: 6.292134831 | C171: 7.935530026 | D171: 18.66491382
A172: 1.27 | B172: 6.329588015 | C172: 7.982662122 | D172: 18.72435599
A173: 1.27 | B173: 6.367041199 | C173: 8.030074766 | D173: 18.78415121
A174: 1.28 | B174: 6.404494382 | C174: 8.077767959 | D174: 18.84430159
A175: 1.29 | B175: 6.441947566 | C175: 8.125741699 | D175: 18.90480921
A176: 1.30 | B176: 6.479400749 | C176: 8.173995988 | D176: 18.96567619
A177: 1.30 | B177: 6.516853933 | C177: 8.222530825 | D177: 19.02690462
A178: 1.31 | B178: 6.554307116 | C178: 8.27134621 | D178: 19.08849662
A179: 1.32 | B179: 6.5917603 | C179: 8.320442144 | D179: 19.15045426
A180: 1.33 | B180: 6.629213483 | C180: 8.369818626 | D180: 19.21277967
A181: 1.33 | B181: 6.666666667 | C181: 8.419475655 | D181: 19.27547494
A182: 1.34 | B182: 6.70411985 | C182: 8.469413233 | D182: 19.33854218
A183: 1.35 | B183: 6.741573034 | C183: 8.51963136 | D183: 19.40198348
A184: 1.36 | B184: 6.779026217 | C184: 8.570130034 | D184: 19.46580094
A185: 1.36 | B185: 6.816479401 | C185: 8.620909257 | D185: 19.52999667
A186: 1.37 | B186: 6.853932584 | C186: 8.671969027 | D186: 19.59457277
A187: 1.38 | B187: 6.891385768 | C187: 8.723309346 | D187: 19.65953134
A188: 1.39 | B188: 6.928838951 | C188: 8.774930214 | D188: 19.72487448
A189: 1.39 | B189: 6.966292135 | C189: 8.826831629 | D189: 19.79060429
A190: 1.40 | B190: 7.003745318 | C190: 8.879013593 | D190: 19.85672288
A191: 1.41 | B191: 7.041198502 | C191: 8.931476104 | D191: 19.92323235
A192: 1.42 | B192: 7.078651685 | C192: 8.984219164 | D192: 19.99013479
A193: 1.42 | B193: 7.116104869 | C193: 9.037242772 | D193: 20.05743231
A194: 1.43 | B194: 7.153558052 | C194: 9.090546929 | D194: 20.12512702
A195: 1.44 | B195: =5*t -> 7.191011236 | C195: 9.144131633 | D195: 20.193221
A196: =A195+dx -> 1.45 | B196: 7.228464419 | C196: =C195+B195*dx -> 9.197996886 | D196: =D195+C195*dx -> 20.26171637
A197: 1.45 | B197: 7.265917603 | C197: 9.252142687 | D197: 20.33061522
A198: 1.46 | B198: 7.303370787 | C198: 9.306569036 | D198: 20.39991966
A199: 1.47 | B199: 7.34082397 | C199: 9.361275933 | D199: 20.46963179
A200: 1.48 | B200: 7.378277154 | C200: 9.416263379 | D200: 20.5397537
... 604 more rows

Sheet Defining Function
A1: Defining a Function in Excel
A3: Computers have very specific rules you must follow when defining a function. If you don't, the program will either not work at all or will work incorrectly.
A5: 1. The Variable used should be the one named in the instruction, usually x, though sometimes y, t, Q (for an angle theta),
A6: or even x and y (for a function of two variables).
A8: 2. Order of Operations: There five arithmetic operations, addition (+), subtraction (-), multiplication (*), division (/), and exponentiation or power (^). When computers see any of these operation symbols, they perform the indicated steps in a very particular order. First, the power is done. Second, products and quotients of adjacent terms is done. Third, and last, sums and differences of adjacent terms are done. So, in 10*x^3 + 5*x – 7, say with x = 2, the first pass only calculates 2^3 and ignores the multiplications and the sums and differences to calculate 2^3 = 8. The second pass looks at 10*8 + 5*2 – 7 and only does the multiplications, so it produces 80 + 10 - 7. The third pass looks at the +’s and –‘s to produce 80 + 10 – 7 = 83.
A10: 3. Parentheses If you need an operation involving more than two adjacent terms, as in Ö4^3 + 6^2, the computer would take the square root of 4 to produce 2^3 + 6^2; it would then cube the 2 and square the 6 to produce 8 + 36; and finally it would add the 8 and the 36 to get 44. If you actually wanted the square root of the entire expression, you would need to use parentheses, as in Ö(4^3 + 6^2) to tell the computer to do all the operations inside the parentheses before taking the square root. Therefore, it would calculate (4^3 + 6^2) = 64 + 36 = 100 and then take the square root of Ö100 = 10.
A12: 4. Built-In Functions Computer programs have built-in functions for most common algebraic functions. In Excel, the square root function is denoted by SQRT(…), so SQRT(100) = 10. Alternatively, you could enter it as 100^.5 or 100^(1/2); notice that parentheses are needed to have the ½ done first. The common trig functions are SIN (…), COS (…), and TAN (…), where the arguments are automatically interpreted as being in radians, not degrees. The logarithm to the base 10 is represented by LOG (…) and the logarithm with the base e, known as the natural logarithm, is LN (…). The corresponding exponential function with base e is EXP (x). If x is the variable, then each of these would be SQRT (x), SIN (x), COS (x), TAN (x), LOG (x) (for log with base 10 ), LN (x) (for log with base e ), and EXP (x).

Sheet Sheet3
